bitfinex/quotes_SOLUSD_20230112
["timestamp","ask_amount","ask_price","bid_price","bid_amount"]
[1673543948258,46.26,16.213,16.195,71.39323]
[1673543948477,187.4,16.214,16.196,5.08291]
[1673543948688,20.0,16.213,16.198,20.0]
[1673543948888,20.0,16.213,16.199,20.0]
[1673543949099,20.0,16.213,16.199,32.20118649]
[1673543949321,187.4,16.215,16.199,32.20118649]
[1673543949535,46.25,16.217,16.2,12.20118649]
[1673543949753,207.4,16.218,16.201,66.3]
[1673543950063,20.0,16.218,16.201,71.38135]
[1673543950265,20.0,16.218,16.202,17.28221649]
[1673543950490,46.3,16.22,16.203,66.29]
[1673543950801,46.3,16.22,16.203,78.49118649]
[1673543951027,46.3,16.22,16.204,12.20118649]
[1673543951198,46.3,16.22,16.205,20.0]
[1673543951537,46.3,16.22,16.205,12.20118649]
[1673543951749,233.7,16.22,16.205,12.20118649]
[1673543951942,20.0,16.217,16.202,5.08103]
[1673543952267,20.0,16.215,16.203,12.20118649]
[1673543953209,20.0,16.215,16.202,5.08103]
[1673543953431,187.4,16.213,16.196,46.31]
[1673543953618,46.26,16.214,16.2,12.20118649]
[1673543953954,20.0,16.213,16.203,12.20118649]
[1673543954151,20.0,16.213,16.204,20.0]
[1673543955195,20.0,16.213,16.202,20.0]
[1673543955626,187.4,16.211,16.198,12.20118649]
[1673543955831,20.0,16.209,16.196,5.08291]
[1673543957108,233.68,16.208,16.189,89.6445757]
[1673543957319,233.68,16.208,16.187,157.2703]
[1673543957539,17.0,16.207,16.188,11.82767804]
[1673543957738,187.4,16.205,16.188,11.82767804]
[1673543957946,187.4,16.203,16.187,110.9303]
[1673543958154,20.0,16.202,16.187,157.2703]
[1673543958351,20.0,16.202,16.187,110.9303]
[1673543958566,66.29,16.204,16.188,11.82767804]
[1673543958770,20.0,16.207,16.19,20.0]
[1673543959211,20.0,16.207,16.191,31.82767804]
[1673543959419,46.28,16.206,16.191,31.82767804]
[1673543959631,187.4,16.205,16.191,31.82767804]
[1673543959827,20.0,16.204,16.191,31.82767804]
[1673543960040,187.4,16.203,16.191,20.0]
[1673543960372,187.4,16.203,16.183,46.35]
[1673543960373,26.04,16.2,16.183,46.35]
[1673543960561,187.4,16.198,16.179,46.36]
[1673543960767,130.59,16.2,16.178,113.5186]
[1673543960768,20.0,16.195,16.178,159.8786]
[1673543961086,233.72,16.194,16.18,11.82767804]
[1673543961627,26.04,16.19,16.177,13.95486024]
[1673543961818,20.0,16.188,16.177,13.95486024]
[1673543962781,187.4,16.186,16.177,13.95486024]
[1673543962983,46.34,16.185,16.177,13.95486024]
[1673543963198,20.0,16.184,16.162,46.41]
[1673543963402,26.04,16.18,16.162,46.41]
[1673543963617,46.35,16.183,16.168,20.0]
[1673543963937,20.0,16.184,16.169,11.82767804]
[1673543964550,20.0,16.184,16.17,20.0]
[1673543964985,20.0,16.184,16.171,11.46554422]
[1673543965181,46.34,16.185,16.172,20.0]
[1673543965390,66.33,16.188,16.173,20.0]
[1673543965722,20.0,16.188,16.174,20.0]
[1673543965925,20.0,16.188,16.174,31.46554422]
[1673543966145,20.0,16.188,16.175,11.46554422]
[1673543966332,66.33,16.189,16.175,11.46554422]
[1673543966773,20.0,16.191,16.175,16.55505422]
[1673543967090,72.15,16.19,16.175,5.08951]
[1673543967304,72.15,16.19,16.176,11.46554422]
[1673543967305,46.33,16.19,16.176,11.46554422]
[1673543967497,20.0,16.189,16.176,11.46554422]
[1673543968147,20.0,16.187,16.176,11.46554422]
[1673543968873,20.0,16.187,16.174,20.0]
[1673543969195,20.0,16.187,16.175,11.46554422]
[1673543971320,46.33,16.189,16.175,11.46554422]
[1673543971634,46.32,16.194,16.177,20.0]
[1673543971823,20.0,16.196,16.178,66.36]
[1673543972034,20.0,16.196,16.178,77.82554422]
[1673543972238,46.31,16.195,16.178,77.82554422]
[1673543972454,46.31,16.195,16.178,31.46554422]
[1673543972672,207.4,16.194,16.172,46.38]
[1673543972875,207.4,16.194,16.171,20.0]
[1673543972876,26.04,16.19,16.177,11.46554422]
[1673543973088,20.0,16.188,16.177,11.46554422]
[1673543973302,46.34,16.187,16.171,20.0]
[1673543973517,46.34,16.187,16.172,11.46554422]
[1673543973932,20.0,16.186,16.172,11.46554422]
[1673543974249,20.0,16.186,16.173,20.0]
[1673543974458,46.34,16.185,16.173,20.0]
[1673543974670,66.34,16.186,16.174,11.46554422]
[1673543975399,20.0,16.186,16.174,11.46554422]
[1673543976352,20.0,16.186,16.173,20.0]
[1673543976557,20.0,16.186,16.171,20.0]
[1673543976765,187.4,16.184,16.171,20.0]
[1673543976979,20.0,16.182,16.171,31.46554422]
[1673543977191,20.0,16.182,16.171,20.0]
[1673543977400,26.04,16.18,16.166,20.0]
[1673543977610,20.0,16.179,16.166,20.0]
[1673543977825,26.04,16.18,16.167,11.46554422]
[1673543978023,26.04,16.18,16.168,66.39]
[1673543978238,46.34,16.187,16.17,25.97]
[1673543978438,66.33,16.188,16.171,71.47077]
[1673543978648,66.33,16.188,16.172,20.0]
[1673543978976,20.0,16.188,16.172,42.93108844]
[1673543979192,20.0,16.188,16.173,31.46554422]
[1673543979400,109.9961,16.189,16.174,46.37]
[1673543979715,46.31,16.195,16.175,45.08951]
[1673543979931,46.31,16.195,16.176,51.4592]
[1673543979932,187.4,16.195,16.176,51.4592]
[1673543980143,187.4,16.196,16.177,20.0]
[1673543980336,187.4,16.196,16.178,46.36]
[1673543980562,187.4,16.196,16.18,20.0]
[1673543980780,187.4,16.196,16.181,66.35]
[1673543980992,181.2609,16.198,16.181,66.35]
[1673543981202,134.9509,16.198,16.182,31.46554422]
[1673543981417,134.9509,16.198,16.182,11.46554422]
[1673543981630,322.3509,16.198,16.183,31.46554422]
[1673543981843,233.71,16.197,16.183,31.46554422]
[1673543982252,233.71,16.197,16.183,20.0]
[1673543982470,233.71,16.197,16.182,20.0]
[1673543982790,187.4,16.195,16.181,31.46554422]
[1673543982982,20.0,16.194,16.181,31.46554422]
[1673543983188,20.0,16.194,16.181,20.0]
[1673543983619,20.0,16.194,16.178,20.0]
[1673543984046,187.4,16.192,16.178,20.0]
[1673543984260,187.4,16.192,16.178,11.46554422]
[1673543984473,25.82,16.19,16.179,20.0]
[1673543984659,25.82,16.19,16.174,43.3145757]
[1673543984875,253.73,16.189,16.174,101.15011992]
[1673543985299,207.4,16.189,16.174,54.78011992]
[1673543986799,187.4,16.192,16.174,101.15011992]
[1673543987097,187.4,16.192,16.175,36.55505422]
[1673543987312,187.4,16.192,16.176,66.37]
[1673543987505,66.32,16.194,16.178,20.0]
[1673543987723,20.0,16.194,16.178,20.0]
[1673543987932,20.0,16.194,16.179,11.46554422]
[1673543988142,20.0,16.194,16.18,20.0]
[1673543988568,20.0,16.194,16.181,11.46554422]
[1673543988985,20.0,16.194,16.182,20.0]
[1673543991503,20.0,16.194,16.182,31.46554422]
[1673543993305,253.72,16.194,16.182,20.0]
[1673543993516,207.4,16.194,16.181,11.46554422]
[1673543993830,207.4,16.194,16.182,20.0]
[1673543994453,20.0,16.194,16.182,20.0]
[1673543995724,207.4,16.195,16.182,20.0]
[1673543995934,207.4,16.195,16.182,31.46554422]
[1673543997498,207.4,16.195,16.182,20.0]
[1673543997499,26.04,16.19,16.182,20.0]
[1673543997707,26.04,16.19,16.179,11.46554422]
[1673543997912,26.04,16.19,16.175,66.37]
[1673543997913,26.04,16.19,16.175,46.37]
[1673543998129,20.0,16.188,16.174,117.4361]
[1673543998338,187.4,16.189,16.175,20.0]
[1673543998749,187.4,16.189,16.175,77.83554422]
[1673543999186,26.04,16.19,16.175,31.46554422]
[1673543999395,20.0,16.189,16.175,31.46554422]
[1673543999723,20.0,16.189,16.175,11.46554422]
[1673544000034,207.4,16.189,16.175,11.46554422]
[1673544000465,253.73,16.189,16.175,11.46554422]
[1673544000961,253.73,16.189,16.174,117.4361]
[1673544003834,253.73,16.189,16.174,128.90164422]
[1673544005604,187.4,16.189,16.174,175.27164422]
[1673544005820,26.04,16.19,16.175,20.0]
[1673544006223,26.04,16.19,16.176,11.46554422]
[1673544007291,20.0,16.189,16.176,11.46554422]
[1673544007814,26.04,16.19,16.176,31.46554422]
[1673544008024,46.32,16.194,16.176,31.46554422]
[1673544008219,187.4,16.196,16.177,82.92442422]
[1673544008432,207.4,16.197,16.178,25.08857]
[1673544008653,46.31,16.196,16.179,66.36]
[1673544008971,46.31,16.196,16.179,94.37933844]
[1673544009184,233.71,16.197,16.181,20.0]
[1673544009378,233.71,16.197,16.182,20.0]
[1673544009584,233.71,16.197,16.182,31.46554422]
[1673544009794,114.9509,16.198,16.183,11.46554422]
[1673544010016,114.9509,16.198,16.184,20.0]
[1673544010226,20.0,16.197,16.184,20.0]
[1673544010562,46.31,16.196,16.184,31.46554422]
[1673544010758,20.0,16.197,16.184,31.46554422]
[1673544010951,302.3509,16.198,16.184,31.46554422]
[1673544011161,20.0,16.197,16.184,31.46554422]
[1673544011372,66.3,16.199,16.184,31.46554422]
[1673544011690,20.0,16.198,16.184,31.46554422]
[1673544011901,46.31,16.197,16.184,31.46554422]
[1673544012107,46.31,16.198,16.184,31.46554422]
[1673544012318,26.09,16.2,16.185,20.0]
[1673544012529,46.3,16.199,16.185,25.08637]
[1673544012737,46.3,16.199,16.185,36.55191422]
[1673544013183,46.09,16.2,16.185,36.55191422]
[1673544013367,46.3,16.199,16.185,36.55191422]
[1673544014115,46.28,16.206,16.186,66.34]
[1673544014347,345.106,16.208,16.187,25.08574]
[1673544014558,345.106,16.208,16.188,71.41543]
[1673544014768,345.106,16.208,16.19,20.0]
[1673544014974,345.106,16.208,16.191,66.33]
[1673544015191,20.0,16.207,16.191,20.0]
[1673544015400,20.0,16.207,16.191,31.46554422]
[1673544015613,20.0,16.207,16.192,46.32]
[1673544015822,20.0,16.207,16.193,20.0]
[1673544016778,253.68,16.207,16.192,20.0]
[1673544017817,46.28,16.207,16.192,20.0]
[1673544018039,187.4,16.216,16.193,62.86940422]
[1673544018222,253.66,16.215,16.194,25.08354]
[1673544018556,253.66,16.215,16.195,51.39323]
[1673544018764,20.0,16.214,16.196,25.08291]
[1673544018979,187.4,16.213,16.197,25.0826]
[1673544019191,20.0,16.211,16.197,25.0826]
[1673544019383,46.27,16.212,16.198,11.46554422]
[1673544019600,187.4,16.213,16.199,20.0]
[1673544020009,233.65,16.216,16.2,11.46554422]
[1673544020234,20.0,16.215,16.201,20.0]
[1673544021078,20.0,16.213,16.201,20.0]
[1673544021401,233.66,16.214,16.201,20.0]
[1673544021920,26.04,16.21,16.197,5.0826]
[1673544022757,72.31,16.21,16.197,5.0826]
[1673544022966,20.0,16.209,16.197,5.0826]
[1673544023481,187.4,16.207,16.197,5.0826]
[1673544023687,253.68,16.206,16.192,115.9782]
[1673544023904,207.4,16.206,16.192,115.9782]
[1673544024229,46.29,16.205,16.192,115.9782]
[1673544024460,46.29,16.205,16.193,11.46554422]
[1673544024668,46.27,16.212,16.194,25.08354]
[1673544024864,161.3715,16.217,16.195,51.39323]
[1673544025073,46.25,16.219,16.2,25.97]
[1673544025282,26.04,16.22,16.201,169.87355]
[1673544025492,26.04,16.22,16.202,25.08103]
[1673544025702,20.0,16.219,16.203,5.08072]
[1673544026030,20.0,16.219,16.203,36.54626422]
[1673544026240,20.0,16.219,16.204,20.0]
[1673544026451,20.0,16.219,16.205,5.08009]
[1673544026649,253.65,16.219,16.205,5.08009]
[1673544027401,17.0,16.218,16.204,20.0]
[1673544027594,20.0,16.215,16.202,20.0]
[1673544027799,26.04,16.21,16.193,20.0]
[1673544028139,20.0,16.209,16.193,20.0]
[1673544028356,207.4,16.209,16.193,20.0]
[1673544028965,207.32474503,16.209,16.193,20.0]
[1673544029379,187.4,16.208,16.193,20.0]
[1673544029584,46.28,16.207,16.192,116.9462]
[1673544029800,46.28,16.207,16.192,122.03037]
[1673544030010,20.0,16.206,16.192,122.03037]
[1673544030444,20.0,16.206,16.189,11.46554422]
[1673544030645,233.69,16.205,16.189,11.46554422]
[1673544030849,233.69,16.205,16.192,20.0]
[1673544031179,20.0,16.204,16.189,11.46554422]
[1673544031372,25.82,16.2,16.182,235.0627]
[1673544031591,187.4,16.198,16.183,11.46554422]
[1673544032000,19.9247047,16.196,16.183,11.46554422]
[1673544032634,46.3,16.199,16.183,11.46554422]
[1673544032849,46.29,16.203,16.184,51.43668]
[1673544033074,46.29,16.203,16.185,25.08637]
[1673544033280,46.29,16.203,16.186,5.08605]
[1673544033490,26.04,16.2,16.186,5.08605]
[1673544034002,20.0,16.199,16.183,46.35]
[1673544034209,187.4,16.198,16.182,246.52824422]
[1673544034642,20.0,16.197,16.182,246.52824422]
[1673544035055,66.3,16.199,16.183,20.0]
[1673544035281,46.3,16.199,16.183,20.0]
[1673544035491,26.3,16.2,16.184,82.53476039]
[1673544035716,26.3,16.2,16.184,87.62144039]
[1673544035902,20.0,16.199,16.185,62.53476039]
[1673544036327,20.0,16.199,16.186,11.46554422]
[1673544036533,46.28,16.208,16.187,66.34]
[1673544036748,112.3126,16.208,16.19,25.97]
[1673544036965,66.19474503,16.209,16.192,20.0]
[1673544037173,46.3,16.21,16.193,25.08386]
[1673544037381,26.3,16.21,16.194,5.08354]
[1673544037704,213.7,16.21,16.194,76.15275617]
[1673544037895,213.7,16.21,16.195,11.46554422]
[1673544038233,46.27,16.211,16.195,11.46554422]
[1673544038434,164.0733,16.218,16.196,142.46212617]
[1673544038652,187.4,16.217,16.197,5.0826]
[1673544038856,20.0,16.216,16.199,20.0]
[1673544039176,20.0,16.216,16.2,82.84720422]
[1673544039493,20.0,16.216,16.201,5.08135]
[1673544039693,66.25,16.219,16.202,66.29]
[1673544039904,25.91,16.22,16.204,20.0]
[1673544040110,25.91,16.22,16.205,25.08009]
[1673544040320,24.670051,16.223,16.206,51.35978]
[1673544040535,24.670051,16.223,16.207,5.07946]
[1673544040863,24.670051,16.223,16.207,76.14867617]
[1673544041059,24.670051,16.223,16.208,11.46554422]
[1673544041389,24.670051,16.223,16.208,82.53476039]
[1673544041582,24.670051,16.223,16.21,25.79]
[1673544041788,24.670051,16.223,16.211,71.34821]
[1673544042120,24.670051,16.223,16.212,25.0779]
[1673544042332,24.670051,16.223,16.213,71.33758]
[1673544042651,24.670051,16.223,16.213,87.61234039]
[1673544042846,24.670051,16.223,16.214,11.46554422]
[1673544043063,24.670051,16.223,16.213,87.61234039]
[1673544045146,25.82,16.22,16.213,56.14679617]
[1673544045365,233.65,16.219,16.2,252.9122]
[1673544045567,233.65,16.219,16.201,25.08135]
[1673544045791,45.82,16.22,16.207,11.46554422]
[1673544046005,233.22,16.22,16.204,20.0]
[1673544046203,213.22,16.22,16.204,20.0]
[1673544046418,24.670051,16.223,16.21,25.97]
[1673544046624,24.670051,16.223,16.212,20.0]
[1673544046839,24.670051,16.223,16.213,51.33758]
[1673544047050,24.670051,16.223,16.214,5.07727]
[1673544047265,24.670051,16.223,16.214,36.54281422]
[1673544047694,24.670051,16.223,16.215,11.46554422]
[1673544048014,24.670051,16.223,16.215,40.93788284]
[1673544048221,24.670051,16.223,16.216,48.8245495]
[1673544048433,24.670051,16.223,16.217,5.07633]
[1673544048663,24.670051,16.223,16.217,16.54187422]
[1673544048841,24.670051,16.223,16.218,60.29009372]
[1673544049256,20.0,16.228,16.219,60.29009372]
[1673544049589,20.0,16.228,16.22,48.8245495]
[1673544049899,20.0,16.228,16.22,60.29009372]
[1673544050119,20.0,16.228,16.217,5.07633]
[1673544051152,46.22,16.227,16.217,5.07633]
[1673544051369,46.22,16.227,16.218,48.8245495]
[1673544051790,24.653066,16.233,16.218,97.57039734]
[1673544051999,24.653066,16.233,16.22,25.97]
[1673544052219,24.653066,16.233,16.221,51.31508]
[1673544052422,20.0,16.232,16.222,5.07477]
[1673544052641,25.82,16.23,16.204,20.0]
[1673544052954,66.22,16.229,16.214,11.46554422]
[1673544053163,66.22,16.229,16.214,11.31663622]
[1673544053693,253.62,16.229,16.21,162.4426695]
[1673544053897,17.0,16.228,16.21,125.08366422]
[1673544054108,46.22,16.227,16.21,125.08366422]
[1673544054313,26.04,16.22,16.21,5.07852]
[1673544054630,20.0,16.218,16.206,11.46554422]
[1673544055043,20.0,16.218,16.206,11.56793449]
[1673544057154,20.0,16.218,16.202,108.5396]
[1673544057355,46.25,16.217,16.202,108.5396]
[1673544057564,46.25,16.219,16.202,108.5396]
[1673544057777,26.04,16.22,16.204,20.0]
[1673544057991,26.04,16.22,16.205,5.08009]
[1673544058187,26.04,16.22,16.205,16.64802449]
[1673544058398,20.0,16.219,16.205,16.64802449]
[1673544058818,66.25,16.219,16.205,16.64802449]
[1673544059037,66.25,16.219,16.205,5.08009]
[1673544059242,20.0,16.219,16.205,5.08009]
[1673544061795,207.4,16.219,16.205,5.08009]
[1673544062013,187.4,16.217,16.205,5.08009]
[1673544062314,187.4,16.215,16.201,11.56793449]
[1673544062540,26.04,16.21,16.195,46.31]
[1673544062722,26.04,16.21,16.182,79.56]
[1673544062723,187.4,16.208,16.184,20.0]
[1673544062937,233.68,16.207,16.188,92.12188845]
[1673544063162,46.28,16.207,16.194,11.56793449]
[1673544063352,46.28,16.208,16.195,5.08323]
[1673544063568,26.3,16.21,16.195,25.08323]
[1673544063774,72.57,16.21,16.196,11.56793449]
[1673544063991,72.57,16.21,16.197,5.0826]
[1673544064407,26.3,16.21,16.198,11.56793449]
[1673544064734,26.3,16.21,16.198,16.65022449]
[1673544065561,20.0,16.209,16.198,16.65022449]
[1673544066420,20.0,16.209,16.196,48.8245495]
[1673544066605,20.0,16.207,16.196,48.8245495]
[1673544067261,20.0,16.207,16.191,229.7302]
[1673544067585,20.0,16.207,16.192,20.0]
[1673544068101,233.67,16.209,16.193,11.56793449]
[1673544068287,72.57,16.21,16.194,25.08354]
[1673544068502,72.57,16.21,16.195,20.0]
[1673544068718,26.3,16.21,16.195,31.56793449]
[1673544069037,46.27,16.209,16.196,11.56793449]
[1673544069257,26.3,16.21,16.196,16.65084449]
[1673544069671,20.0,16.209,16.196,65.47539399]
[1673544069995,187.4,16.207,16.196,48.8245495]
[1673544070191,187.4,16.207,16.194,20.0]
[1673544070394,46.28,16.208,16.192,20.0]
[1673544070616,20.0,16.207,16.193,20.0]
[1673544070816,20.0,16.207,16.194,20.0]
[1673544071448,20.0,16.207,16.194,11.56647804]
[1673544073245,253.68,16.207,16.194,11.56647804]
[1673544074411,253.68,16.207,16.193,20.0]
[1673544078710,20.0,16.209,16.194,11.56647804]
[1673544078929,20.0,16.209,16.194,16.65001804]
[1673544079125,20.0,16.209,16.194,65.47456754]
[1673544079335,20.0,16.209,16.195,11.56647804]
[1673544079556,24.26,16.21,16.196,66.31]
[1673544079765,46.26,16.215,16.197,5.0826]
[1673544079953,46.26,16.215,16.198,66.31]
[1673544080169,114.0217,16.218,16.199,5.08197]
[1673544080170,253.65,16.216,16.199,5.08197]
[1673544080381,207.4,16.216,16.2,46.3]
[1673544080589,207.4,16.216,16.201,20.0]
[1673544081134,207.4,16.216,16.202,11.56647804]
[1673544081321,233.66,16.215,16.203,20.0]
[1673544081536,20.0,16.214,16.201,20.0]
[1673544081961,20.0,16.214,16.202,11.56647804]
[1673544082183,20.0,16.214,16.203,20.0]
[1673544085219,207.4,16.214,16.203,20.0]
[1673544085431,20.0,16.214,16.203,20.0]
[1673544085633,20.0,16.217,16.204,62.93687804]
[1673544085844,20.0,16.217,16.205,5.08009]
[1673544086068,20.0,16.217,16.205,16.64656804]
[1673544086709,24.21,16.22,16.206,11.56647804]
[1673544086925,20.0,16.223,16.207,71.35946]
[1673544087119,20.0,16.223,16.208,25.07915]
[1673544087539,66.23,16.223,16.208,25.07915]
[1673544088052,20.0,16.223,16.208,25.07915]
[1673544088268,20.0,16.223,16.208,5.07915]
[1673544089022,231.59,16.23,16.209,118.28162836]
[1673544089346,44.19,16.23,16.211,20.0]
[1673544089646,44.19,16.23,16.212,71.3479]
[1673544089857,90.4,16.23,16.213,5.07758]
[1673544090060,90.4,16.23,16.214,20.0]
[1673544090273,90.4,16.23,16.215,5.07696]
[1673544090680,90.4,16.23,16.215,16.64343804]
[1673544091020,44.19,16.23,16.215,16.64343804]
[1673544091330,44.19,16.23,16.216,11.24236427]
[1673544091752,44.19,16.23,16.216,16.31900427]
[1673544092069,44.19,16.23,16.217,5.07633]
[1673544092285,231.59,16.23,16.217,16.31869427]
[1673544093006,277.8,16.23,16.217,16.31869427]
[1673544093211,277.8,16.23,16.217,5.07633]
[1673544093425,66.21,16.23,16.214,20.0]
[1673544093638,20.0,16.234,16.218,71.47436989]
[1673544093848,20.0,16.234,16.219,71.32571]
[1673544094057,20.0,16.234,16.22,5.07539]
[1673544094251,20.0,16.234,16.221,20.0]
[1673544094465,20.0,16.234,16.221,80.23200562]
[1673544095012,44.652512,16.235,16.222,60.23200562]
[1673544095332,44.652512,16.235,16.223,36.31681427]
[1673544095634,44.652512,16.235,16.224,76.50428389]
[1673544096049,44.652512,16.235,16.225,60.18777962]
[1673544097214,24.652512,16.235,16.226,20.0]
[1673544097435,5.0,16.24,16.228,20.0]
[1673544097632,5.0,16.24,16.23,24.25]
[1673544097843,5.0,16.24,16.231,5.07195]
[1673544098040,46.19,16.239,16.229,52.80736432]
[1673544098374,5.0,16.24,16.229,52.80736432]
[1673544098986,5.0,16.24,16.23,11.24236427]
[1673544099212,5.0,16.24,16.229,52.80736432]
[1673544099213,20.0,16.239,16.229,52.80736432]
[1673544099841,5.0,16.24,16.23,11.24236427]
[1673544100481,5.0,16.24,16.23,105.53111655]
[1673544100691,5.0,16.24,16.232,20.0]
[1673544100900,5.0,16.24,16.232,5.07164]
[1673544101102,5.0,16.24,16.232,39.86297029]
[1673544101315,46.19,16.239,16.226,11.24236427]
[1673544101516,46.19,16.239,16.227,54.42578199]
[1673544101725,25.0,16.24,16.227,54.42578199]
[1673544101936,25.0,16.24,16.227,105.53111655]
[1673544102150,25.0,16.24,16.228,20.0]
[1673544102367,25.0,16.24,16.229,5.07258]
[1673544102689,25.0,16.24,16.223,46.23]
[1673544103009,46.19,16.239,16.224,172.18568199]
[1673544103197,20.0,16.238,16.224,172.18568199]
[1673544103407,46.19,16.237,16.224,172.18568199]
[1673544103618,46.19,16.237,16.224,183.42804626]
[1673544103837,20.0,16.236,16.224,183.42804626]
[1673544104871,20.0,16.236,16.224,65.66814626]
[1673544105086,20.0,16.236,16.224,54.42578199]
[1673544105310,20.0,16.236,16.224,65.66814626]
[1673544105733,20.0,16.239,16.225,66.23]
[1673544105939,20.0,16.239,16.226,5.07352]
[1673544106249,20.0,16.239,16.227,66.22]
[1673544106453,66.19,16.239,16.227,65.66814626]
[1673544106671,66.19,16.239,16.211,20.0]
[1673544106878,181.9449,16.239,16.211,20.0]
[1673544107095,181.9449,16.239,16.222,54.42578199]
[1673544107503,369.3449,16.239,16.223,11.24236427]
[1673544107731,66.19,16.239,16.224,20.0]
[1673544107925,5.0,16.24,16.225,5.07383]
[1673544108135,5.0,16.24,16.227,20.0]
[1673544108348,5.0,16.24,16.228,51.29289]
[1673544108558,5.0,16.24,16.229,5.07258]
[1673544108872,5.0,16.24,16.23,11.24236427]
[1673544109201,5.0,16.24,16.231,20.0]
[1673544109604,5.0,16.24,16.231,31.24236427]
[1673544110770,5.0,16.24,16.231,36.31431427]
[1673544111723,5.0,16.24,16.231,16.31431427]
[1673544111945,5.0,16.24,16.231,5.07195]
[1673544112136,46.19,16.239,16.222,46.24]
[1673544112340,20.0,16.238,16.223,5.07445]
[1673544112552,20.0,16.238,16.223,59.50023199]
[1673544112757,20.0,16.236,16.223,59.50023199]
[1673544112968,46.2,16.235,16.212,159.926]
[1673544113202,20.0,16.234,16.22,45.77436432]
[1673544113412,46.2,16.235,16.222,20.0]
[1673544113813,46.2,16.235,16.221,44.93805029]
[1673544114042,20.0,16.234,16.221,44.93805029]
[1673544114665,20.0,16.236,16.222,20.0]
[1673544115909,24.23,16.23,16.214,46.26]
[1673544116115,233.62,16.229,16.214,46.26]
[1673544116330,233.62,16.229,16.212,49.71518865]
[1673544116540,20.0,16.228,16.211,45.77436432]
[1673544116752,187.4,16.226,16.207,49.71518865]
[1673544117068,20.0,16.223,16.208,46.28]
[1673544117496,20.0,16.223,16.205,45.77436432]
[1673544117497,25.93,16.22,16.205,45.77436432]
[1673544117800,25.93,16.22,16.205,95.48955297]
[1673544118011,20.0,16.226,16.206,46.28]
[1673544118220,20.0,16.226,16.206,92.05436432]
[1673544118426,20.0,16.226,16.207,131.81137724]
[1673544118661,20.0,16.226,16.208,51.35915]
[1673544118878,20.0,16.226,16.209,20.0]
[1673544119064,25.93,16.22,16.208,51.35915]
[1673544119279,25.93,16.22,16.208,5.07915]
[1673544119509,20.0,16.219,16.208,5.07915]
[1673544120553,45.93,16.22,16.208,5.07915]
[1673544121075,46.23,16.225,16.208,27.56387854]
[1673544121269,66.22,16.228,16.209,46.27]
[1673544121474,66.22,16.228,16.21,5.07852]
[1673544121683,66.22,16.228,16.211,66.27]
[1673544121919,20.0,16.228,16.212,4.76357]
[1673544122121,20.0,16.228,16.213,46.26]
[1673544122340,20.0,16.228,16.214,20.0]